bitfinex-derivatives/quotes_SOLF0:USTF0_20260127
["timestamp","ask_amount","ask_price","bid_price","bid_amount"]
[1769530782541,64.72820356,126.34,126.27,7.1357]
[1769530783437,7.1324,126.33,126.27,7.1357]
[1769530783940,64.72820356,126.34,126.27,7.1357]
[1769530784838,69.98544949,126.33,126.27,7.1357]
[1769530785141,64.72820356,126.32,126.24,66.55983963]
[1769530785943,64.72820356,126.32,126.26,7.1363]
[1769530788143,71.86130356,126.32,126.26,7.1363]
[1769530788446,64.72820356,126.32,126.24,71.82178556]
[1769530788645,70.59522536,126.31,126.24,64.68468556]
[1769530788842,64.72820356,126.31,126.24,64.68468556]
[1769530789549,1.87535632,126.32,126.24,66.56004188]
[1769530789953,64.72840581,126.32,126.24,66.56004188]
[1769530790248,64.72840581,126.32,126.26,7.1358]
[1769530790651,5.87175893,126.31,126.26,7.1358]
[1769530790846,64.72840581,126.32,126.26,7.1358]
[1769530791150,5.87175893,126.31,126.26,7.1358]
[1769530791343,5.87175893,126.31,126.27,7.1355]
[1769530791843,64.72840581,126.32,126.27,7.1355]
[1769530792146,5.87652774,126.31,126.27,7.1355]
[1769530792344,64.72840581,126.32,126.26,7.1363]
[1769530792546,68.72983201,126.31,126.26,7.1363]
[1769530792747,62.85304949,126.31,126.26,7.1363]
[1769530793253,62.85304949,126.31,126.25,7.1369]
[1769530793745,62.85304949,126.35,126.28,66.56004188]
[1769530793951,5.89489528,126.34,126.28,66.56004188]
[1769530794945,5.89489528,126.34,126.29,7.1346]
[1769530796153,5.89489528,126.34,126.3,1.87535632]
[1769530796743,74.7165975,126.37,126.32,1.87535632]
[1769530796948,5.89568968,126.36,126.32,1.87535632]
[1769530799350,5.89568968,126.36,126.3,66.70446358]
[1769530800254,5.89568968,126.36,126.3,73.83796358]
[1769530800550,67.5859975,126.4,126.34,1.87535632]
[1769530800755,5.89098479,126.39,126.36,1.87535632]
[1769530801048,73.47762328,126.38,126.31,66.70283323]
[1769530801254,67.5859975,126.38,126.31,1.87535632]
[1769530801552,74.7166975,126.36,126.3,7.134]
[1769530801750,67.5859975,126.36,126.3,7.134]
[1769530803950,74.7154975,126.39,126.3,64.82602254]
[1769530804345,67.5859975,126.39,126.3,64.82602254]
[1769530804551,312.50017065,126.43,126.3,64.82602254]
[1769530804552,67.5859975,126.42,126.33,64.82525583]
[1769530804856,5.88454144,126.41,126.33,64.82525583]
[1769530805858,5.88454144,126.41,126.36,7.1306]
[1769530807555,5.88454144,126.41,126.35,7.1312]
[1769530807949,5.88454144,126.41,126.34,64.82199187]
[1769530808153,67.5859975,126.48,126.38,64.82199187]
[1769530808552,74.7103975,126.48,126.38,64.82199187]
[1769530809458,74.7106975,126.47,126.38,71.95129187]
[1769530810057,67.5859975,126.49,126.4,64.81895949]
[1769530810660,7.1246,126.47,126.4,64.81895949]
[1769530811152,178.3802975,126.51,126.4,64.81895949]
[1769530811459,178.3802975,126.51,126.42,64.81565171]
[1769530811460,74.7085975,126.51,126.42,64.81565171]
[1769530812151,67.5859975,126.53,126.43,64.81565171]
[1769530812461,67.5859975,126.53,126.44,64.81565171]
[1769530812659,4.60017065,126.56,126.44,64.81565171]
[1769530812660,7.1203,126.55,126.46,64.8142127]
[1769530812856,74.7062975,126.55,126.46,64.8142127]
[1769530813253,67.5859975,126.54,126.46,64.8142127]
[1769530814160,74.7067975,126.54,126.46,64.8142127]
[1769530815062,7.1214,126.53,126.46,64.8142127]
[1769530815250,67.5859975,126.53,126.46,64.8142127]
[1769530817761,74.7072975,126.53,126.46,64.8142127]
[1769530817961,67.5859975,126.52,126.43,64.80644074]
[1769530818362,74.7080975,126.52,126.43,64.80644074]
[1769530818666,67.5859975,126.52,126.45,7.1254]
[1769530818962,67.5859975,126.52,126.45,64.80508629]
[1769530819270,67.5859975,126.52,126.45,71.93058629]
[1769530819768,67.5859975,126.52,126.42,64.80361642]
[1769530819769,67.5859975,126.51,126.42,64.80361642]
[1769530820861,7.1234,126.49,126.42,71.93081642]
[1769530823063,67.5859975,126.5,126.42,71.93081642]
[1769530823367,4.60017065,126.51,126.43,64.60636946]
[1769530823567,1.86995369,126.49,126.43,64.60636946]
[1769530825967,1.86995369,126.45,126.41,71.7377428]
[1769530826872,1.86995369,126.45,126.39,7.1284]
[1769530827168,1.86995369,126.43,126.39,7.1284]
[1769530827368,179.30505201,126.49,126.4,71.74111801]
[1769530827570,1.86995369,126.44,126.37,380.41271801]
[1769530827963,1.86995369,126.4,126.34,175.54391801]
[1769530828570,1.86995369,126.44,126.38,64.61512046]
[1769530829471,1.86995369,126.42,126.38,64.61512046]
[1769530829668,73.09017249,126.46,126.38,64.61512046]
[1769530830465,7.1256,126.45,126.38,71.74462046]
[1769530831072,75.61915201,126.45,126.38,71.74462046]
[1769530831469,4.59662048,126.46,126.38,64.61512046]
[1769530831870,73.09017249,126.46,126.38,64.61512046]
[1769530832873,68.49355201,126.42,126.35,64.6217498]
[1769530833179,68.49355201,126.42,126.33,64.6217498]
[1769530833971,68.49355201,126.45,126.35,64.62330607]
[1769530834170,68.49355201,126.45,126.37,64.62330607]
[1769530835273,68.49355201,126.45,126.38,7.1295]
[1769530835274,7.1262,126.44,126.38,7.1295]
[1769530835472,68.49355201,126.44,126.34,175.56191521]
[1769530836075,68.49355201,126.44,126.35,64.62661521]
[1769530836966,75.61975201,126.44,126.37,71.75940077]
[1769530837768,75.61975201,126.44,126.38,7.1295]
[1769530838376,75.61975201,126.44,126.37,71.75940077]
[1769530839377,68.49355201,126.44,126.34,64.63367889]
[1769530840877,7.1273,126.42,126.36,7.1306]
[1769530841679,75.62085201,126.42,126.35,7.1312]
[1769530842178,75.62085201,126.42,126.34,64.63367889]
[1769530842877,75.62085201,126.42,126.3,110.9667]
[1769530842878,68.49355201,126.41,126.31,64.64174766]
[1769530843279,73.09017249,126.43,126.34,64.64174766]
[1769530843480,68.49355201,126.43,126.34,64.64174766]
[1769530843880,75.62035201,126.43,126.34,64.64174766]
[1769530844478,75.62035201,126.43,126.36,7.1301]
[1769530847483,68.49355201,126.41,126.34,7.1316]
[1769530847680,68.49355201,126.41,126.29,337.80610239]
[1769530847681,68.49355201,126.41,126.28,125.2593]
[1769530847880,68.49355201,126.39,126.29,64.65119043]
[1769530848283,75.62385201,126.37,126.31,7.1334]
[1769530849082,68.49355201,126.37,126.32,7.1329]
[1769530849483,68.49355201,126.37,126.29,64.65119043]
[1769530849681,75.62385201,126.37,126.31,7.1335]
[1769530850087,75.62385201,126.37,126.29,64.65119043]
[1769530850481,68.49355201,126.37,126.31,7.1335]
[1769530851480,75.62375201,126.37,126.29,71.78549043]
[1769530851686,75.62375201,126.37,126.29,64.65119043]
[1769530851985,68.49355201,126.37,126.29,64.65119043]
[1769530852183,68.49355201,126.4,126.31,64.66006179]
[1769530852781,75.62205201,126.4,126.33,7.1322]
[1769530854684,68.49355201,126.4,126.34,7.1317]
[1769530855584,68.49355201,126.4,126.33,64.86749543]
[1769530856484,68.49355201,126.4,126.33,71.99979543]
[1769530856788,68.49355201,126.4,126.33,64.86749543]
[1769530857293,70.5458292,126.43,126.36,7.1304]
[1769530859094,63.4188292,126.43,126.37,7.13]
[1769530860297,321.4087,126.48,126.36,64.86502423]
[1769530860298,63.4188292,126.45,126.36,64.86502423]
[1769530861695,63.4188292,126.43,126.35,7.1308]
[1769530862496,70.5462292,126.42,126.35,7.1308]
[1769530863092,7.128,126.41,126.34,7.1316]
[1769530863298,63.4188292,126.41,126.31,64.86405397]
[1769530864595,7.1297,126.38,126.31,64.86405397]
[1769530864993,70.5485292,126.38,126.31,64.86405397]
[1769530865398,70.5489292,126.37,126.28,69.4632805]
[1769530865596,63.4188292,126.37,126.28,64.86180055]
[1769530866197,63.4188292,126.37,126.3,7.134]
[1769530866398,63.4188292,126.37,126.28,64.86180055]
[1769530866993,63.4188292,126.35,126.25,380.86116709]
[1769530868296,63.4188292,126.35,126.26,64.86072448]
[1769530869101,70.5507292,126.34,126.25,316.0]
[1769530869803,70.5507292,126.34,126.27,7.1357]
[1769530869996,7.1325,126.33,126.25,380.85998837]
[1769530870196,70.5513292,126.33,126.25,380.85998837]
[1769530870495,63.4188292,126.33,126.25,71.99638837]
[1769530871496,70.5527292,126.31,126.25,64.85998837]
[1769530871703,63.4188292,126.31,126.22,64.8596603]
[1769530872401,63.4188292,126.34,126.24,64.8596603]
[1769530872802,7.1324,126.33,126.25,64.85924968]
[1769530873002,70.5512292,126.33,126.25,64.85924968]
[1769530873897,70.5512292,126.33,126.26,7.1362]
[1769530874098,63.4188292,126.33,126.25,64.85924968]
[1769530875802,63.4188292,126.33,126.23,64.85841119]
[1769530876895,7.1341,126.3,126.24,7.1374]
[1769530877107,63.4188292,126.3,126.2,371.30844065]
[1769530877305,63.4188292,126.3,126.2,64.85917518]
[1769530877989,7.1349,126.29,126.23,7.138]
[1769530878692,70.5537292,126.29,126.23,7.138]
[1769530879201,70.5537292,126.29,126.21,64.85942971]
[1769530880405,63.4188292,126.27,126.18,380.91892455]
[1769530880601,63.4188292,126.27,126.18,64.85892455]
[1769530880801,63.4188292,126.26,126.15,64.85892455]
[1769530881507,63.4188292,126.26,126.17,7.1413]
[1769530881809,63.4188292,126.26,126.17,64.85915319]
[1769530883107,72.01834834,126.25,126.18,7.1408]
[1769530883802,72.01894834,126.24,126.17,64.85915319]
[1769530884003,72.01894834,126.24,126.13,743.47144405]
[1769530884004,64.88144834,126.24,126.15,63.46537368]
[1769530885102,73.99265332,126.21,126.13,681.15771446]
[1769530885306,73.99265332,126.21,126.13,379.27237041]
[1769530885907,73.99265332,126.21,126.14,63.09237041]
[1769530886102,7.1398,126.2,126.14,63.09237041]
[1769530887002,66.85345332,126.21,126.14,63.09237041]
[1769530887805,7.1397,126.2,126.14,63.09237041]
[1769530889012,66.85345332,126.21,126.14,70.23537041]
[1769530889214,66.85345332,126.21,126.14,63.09237041]
[1769530889615,7.1391,126.22,126.14,63.09237041]
[1769530889916,7.1391,126.22,126.15,70.23477041]
[1769530890422,73.99265332,126.21,126.15,7.1424]
[1769530892417,73.99175332,126.23,126.16,70.23427041]
[1769530892903,73.99175332,126.23,126.17,7.1413]
[1769530893509,66.85345332,126.23,126.18,7.1408]
[1769530893715,66.85345332,126.23,126.16,63.09237041]
[1769530894315,66.85345332,126.23,126.17,7.1411]
[1769530896015,66.85345332,126.25,126.16,63.09237041]
[1769530897014,73.99035332,126.25,126.17,7.1408]
[1769530897317,66.85345332,126.25,126.17,7.1408]
[1769530897718,66.85345332,126.24,126.18,7.1408]
[1769530898019,66.85345332,126.24,126.18,63.09237041]
[1769530899412,66.85345332,126.22,126.17,7.141]
[1769530900913,66.85345332,126.22,126.18,7.1408]
[1769530901915,66.85345332,126.22,126.16,9.01936898]
[1769530904019,66.85345332,126.22,126.17,7.1413]
[1769530907420,68.7314223,126.24,126.16,64.97033939]
[1769530907617,66.85345332,126.24,126.18,1.87796898]
[1769530908417,68.7314223,126.26,126.2,1.87796898]
[1769530908921,68.7314223,126.26,126.2,7.1391]
[1769530908922,66.85345332,126.26,126.2,7.1391]
[1769530911225,66.85345332,126.31,126.2,63.09237041]
[1769530911421,66.85345332,126.31,126.22,63.09237041]
[1769530911621,66.85345332,126.31,126.23,7.138]
[1769530911925,66.85345332,126.29,126.22,63.09237041]
[1769530913924,66.85345332,126.29,126.23,7.1379]
[1769530914419,66.85345332,126.29,126.2,64.79860072]
[1769530914627,66.85345332,126.29,126.2,7.1392]
[1769530915021,65.29772593,126.25,126.18,7.1403]
[1769530916127,65.29772593,126.25,126.19,7.1402]
[1769530916331,305.62,126.28,126.19,64.79882644]
[1769530916332,65.29772593,126.28,126.19,64.79882644]
[1769530917026,65.29772593,126.28,126.21,64.79901117]
[1769530917621,65.29772593,126.28,126.22,64.7991716]
[1769530917826,72.43142593,126.31,126.22,64.7991716]
[1769530919031,72.43142593,126.31,126.24,7.1373]
[1769530920032,65.29772593,126.31,126.25,7.1368]
[1769530920441,65.29772593,126.34,126.25,64.79947171]
[1769530920624,65.29772593,126.34,126.25,71.93587171]
[1769530920924,69.90286093,126.34,126.25,7.1364]
[1769530921331,65.29772593,126.31,126.23,7.1377]
[1769530922226,72.43132593,126.31,126.23,7.1377]
[1769530922821,65.29772593,126.29,126.19,64.79973798]
[1769530923031,65.29772593,126.27,126.17,111.0808]
[1769530923234,65.29772593,126.27,126.16,64.79998503]
[1769530923430,65.29772593,126.27,126.17,7.1413]
[1769530923431,65.29772593,126.24,126.17,7.1413]
[1769530924524,65.29772593,126.24,126.15,7.1422]
[1769530926032,72.43642593,126.22,126.15,7.1422]
[1769530926634,72.43642593,126.22,126.13,7.1432]
[1769530926828,65.29772593,126.2,126.13,7.1432]
[1769530927032,65.29772593,126.2,126.1,64.80556759]
[1769530927433,65.29772593,126.2,126.12,7.1441]
[1769530927737,65.29772593,126.2,126.11,64.80690445]
[1769530928932,65.29772593,126.2,126.1,111.148]
[1769530929141,65.29772593,126.2,126.09,423.47638544]
[1769530929335,65.29772593,126.2,126.05,18.41423472]
[1769530929336,65.29772593,126.17,126.05,69.41309093]
[1769530929637,65.29772593,126.15,126.07,111.1769]
[1769530929837,65.29772593,126.15,126.07,175.98713411]
[1769530930232,65.29772593,126.18,126.09,64.81023411]
[1769530930626,111.0571,126.21,126.12,7.144]
[1769530930627,7.1401,126.2,126.12,7.144]
[1769530930833,7.1401,126.2,126.12,64.81116175]
[1769530930834,65.29772593,126.2,126.12,64.81116175]
[1769530931538,65.29772593,126.2,126.12,175.93866175]
[1769530931728,65.29772593,126.23,126.14,175.92592781]
[1769530931934,65.29772593,126.23,126.14,64.81222781]
[1769530932136,65.29772593,126.23,126.11,64.81222781]
[1769530932337,65.29772593,126.22,126.11,175.94892781]
[1769530932741,72.43652593,126.22,126.12,175.9462233]
[1769530932940,72.43652593,126.22,126.13,64.8134233]
[1769530932941,65.29772593,126.22,126.13,64.8134233]
[1769530933140,65.29772593,126.22,126.15,64.8134233]
[1769530933641,65.29772593,126.22,126.16,7.1417]
[1769530934438,65.29772593,126.22,126.17,7.1411]
[1769530935646,65.29772593,126.22,126.15,7.1424]
[1769530936845,65.29772593,126.22,126.16,7.1418]
[1769530937242,65.29772593,126.22,126.13,111.1194]
[1769530937951,72.43642593,126.22,126.14,7.1428]
[1769530939751,65.29772593,126.22,126.15,7.1425]
[1769530940848,65.29772593,126.22,126.16,7.1418]
[1769530941347,72.43652593,126.22,126.15,7.1423]
[1769530941552,65.29772593,126.22,126.14,64.82548414]
[1769530942051,65.29772593,126.22,126.16,7.1418]
[1769530942248,65.29772593,126.22,126.13,111.1193]
[1769530942547,65.29772593,126.22,126.15,7.1424]
[1769530943355,65.29772593,126.22,126.13,175.71631667]
[1769530943356,65.29772593,126.22,126.16,7.1419]
[1769530944451,72.43632593,126.22,126.14,7.1426]
[1769530944655,65.29772593,126.22,126.11,176.07982291]
[1769530945647,65.29772593,126.22,126.12,64.94258466]
[1769530945845,7.1392,126.21,126.13,7.1435]
[1769530946042,65.29772593,126.22,126.13,7.1435]
[1769530947156,72.88432444,126.2,126.13,7.1435]
[1769530947553,72.88482444,126.19,126.12,64.94258466]
[1769530947856,72.88482444,126.19,126.11,7.1444]
[1769530948054,72.88482444,126.19,126.1,64.94224789]
[1769530948963,72.88482444,126.19,126.12,7.1441]
[1769530949662,65.74452444,126.17,126.07,176.11125375]
[1769530949959,65.74452444,126.17,126.07,64.94195375]
[1769530950556,7.1426,126.15,126.09,7.1454]
[1769530950955,65.74452444,126.16,126.09,64.94226795]
[1769530951656,65.74452444,126.19,126.1,64.9423948]
[1769530952162,65.74452444,126.17,126.11,7.1447]
[1769530952659,72.88472444,126.2,126.12,7.1441]
[1769530952861,72.88472444,126.2,126.12,72.08651992]
[1769530953060,65.74452444,126.2,126.12,72.08651992]
[1769530953659,7.1409,126.18,126.12,72.08651992]
[1769530953959,65.74452444,126.18,126.1,7.1448]
[1769530954360,65.74452444,126.13,126.04,492.621969]
[1769530954564,65.74452444,126.13,126.03,6.01003751]
[1769530955264,72.88942444,126.11,126.04,7.1482]
[1769530956271,72.88942444,126.11,126.03,73.63444736]
[1769530956569,65.74452444,126.09,126.03,6.01003751]
[1769530956869,65.74452444,126.09,126.03,13.15923751]
[1769530958269,65.74452444,126.09,126.03,6.01003751]
[1769530958473,115.758335,126.1,125.97,67.62440985]
[1769530958474,65.74452444,126.07,125.97,67.62440985]
[1769530959073,72.89172444,126.07,125.98,7.1518]
[1769530959371,65.74452444,126.07,125.99,67.62440985]
[1769530959672,70.34965944,126.1,126.02,67.62440985]
[1769530959975,65.74452444,126.1,126.02,67.62440985]
[1769530960574,65.74452444,126.1,126.03,7.1491]
[1769530961980,65.74452444,126.1,126.04,7.1485]
[1769530962276,65.74452444,126.13,126.04,7.1485]
[1769530962475,65.74452444,126.12,126.02,67.62440985]
[1769530962678,65.74452444,126.09,125.99,67.62440985]
[1769530963068,65.74452444,126.07,125.99,67.62440985]
[1769530963471,65.74452444,126.07,126.0,7.151]
[1769530964378,65.74452444,126.1,126.01,178.85430985]
[1769530964676,65.74452444,126.1,126.02,67.62440985]
[1769530965376,65.74452444,126.1,126.05,7.1481]
[1769530967068,65.74452444,126.13,126.06,7.1476]
[1769530967679,72.88822444,126.13,126.06,7.1476]
[1769530968978,65.74452444,126.16,126.08,7.1464]
[1769530969278,65.74452444,126.16,126.07,67.62440985]
[1769530969874,65.74452444,126.16,126.08,178.78810985]
[1769530970074,65.74452444,126.16,126.09,67.62440985]
[1769530970481,65.74452444,126.16,126.11,7.1446]
[1769530970685,65.74452444,126.19,126.1,67.62440985]
[1769530971076,65.74452444,126.19,126.14,7.1429]
[1769530971282,7.1396,126.21,126.14,7.1429]
[1769530971577,65.74452444,126.21,126.14,7.1429]
[1769530972281,72.88382444,126.21,126.14,7.1429]
[1769530972682,72.88382444,126.21,126.13,67.62440985]
[1769530973879,72.88382444,126.21,126.13,74.76800985]
[1769530975892,70.36841101,126.2,126.11,7.1444]
[1769530976095,63.22831101,126.2,126.11,7.1444]
[1769530976282,63.22831101,126.2,126.1,64.32661685]
[1769530976482,67.84051593,126.2,126.08,175.49031685]
[1769530976779,70.36941101,126.18,126.1,7.1452]
[1769530978385,63.22831101,126.16,126.09,64.32661685]
[1769530978586,63.22831101,126.16,126.08,7.1463]
[1769530979588,7.1426,126.15,126.08,7.1463]
[1769530980693,7.1432,126.14,126.06,388.11381685]
[1769530980892,63.22831101,126.14,126.06,316.64]
[1769530981190,63.22831101,126.14,126.04,64.32661685]
[1769530981885,70.37211101,126.13,126.05,7.1481]
[1769530982085,63.22831101,126.13,126.05,7.1481]
[1769530982487,63.22831101,126.13,126.04,64.32661685]
[1769530982688,67.84051593,126.16,126.07,64.32661685]
[1769530983492,7.1426,126.15,126.08,7.1462]
[1769530983894,63.22831101,126.16,126.09,64.32661685]
[1769530984095,7.1418,126.17,126.09,64.32661685]
[1769530984589,67.84051593,126.19,126.11,64.32661685]
[1769530984590,70.36881101,126.19,126.11,64.32661685]
[1769530986096,70.36881101,126.19,126.12,7.1441]
[1769530987000,70.36881101,126.19,126.11,64.32661685]
[1769530988902,70.36881101,126.19,126.12,7.1442]
[1769530995401,70.36791101,126.21,126.12,64.32661685]
[1769530996505,63.22831101,126.21,126.14,175.44151685]
[1769530996691,4.61220492,126.24,126.15,64.32661685]
[1769530996692,63.22831101,126.24,126.15,64.32661685]
[1769530996898,63.22831101,126.24,126.19,7.1402]
[1769530997095,63.22831101,126.24,126.17,64.32661685]
[1769530997501,70.36461101,126.26,126.19,7.1402]
[1769530999105,70.36531101,126.25,126.17,64.32661685]
[1769530999802,63.22831101,126.27,126.19,64.32661685]
[1769531000405,63.22831101,126.27,126.19,71.46631685]
[1769531000999,70.36411101,126.27,126.2,7.1396]
[1769531001601,63.22831101,126.27,126.21,7.1391]
[1769531001795,373.38051593,126.3,126.2,64.32661685]
[1769531001995,63.22831101,126.29,126.23,7.1379]
[1769531003207,63.22831101,126.29,126.21,74.79333727]
[1769531003208,70.36311101,126.29,126.21,74.79333727]
[1769531003807,70.36311101,126.29,126.22,7.1384]
[1769531004003,63.22831101,126.29,126.22,7.1384]
[1769531004204,63.22831101,126.29,126.21,67.65463727]
[1769531004907,68.79547646,126.28,126.21,74.79373727]
[1769531006202,68.79547646,126.28,126.19,7.1398]
[1769531006403,68.79547646,126.28,126.18,64.77487041]
[1769531006712,75.93127646,126.27,126.2,7.1396]
[1769531007007,68.79547646,126.27,126.18,64.77487041]
[1769531007508,75.93187646,126.26,126.19,7.1402]
[1769531007716,68.79547646,126.28,126.19,64.77487041]
[1769531007903,68.79547646,126.3,126.21,64.77487041]
[1769531008209,75.92987646,126.3,126.23,7.1379]
[1769531008811,75.92987646,126.3,126.21,64.77487041]
[1769531009912,68.79547646,126.3,126.23,64.77487041]
[1769531010307,68.79547646,126.33,126.23,64.77487041]
[1769531010512,68.79547646,126.31,126.23,64.77487041]
[1769531011014,374.09547646,126.34,126.25,64.77487041]
[1769531011215,68.79547646,126.33,126.25,64.77487041]
[1769531011399,110.916,126.37,126.29,7.1345]
[1769531011400,68.79547646,126.36,126.29,7.1345]
[1769531011606,68.79547646,126.36,126.28,64.77487041]
[1769531011917,68.79547646,126.36,126.28,71.90967041]
[1769531012404,75.92687646,126.35,126.28,7.1348]
[1769531013409,68.79547646,126.35,126.28,7.1348]
[1769531013610,68.79547646,126.35,126.29,7.1346]
[1769531014213,68.79547646,126.35,126.27,71.91007041]
[1769531014419,68.79547646,126.35,126.27,7.1352]
[1769531016118,75.92727646,126.34,126.27,7.1352]
[1769531016712,68.79547646,126.38,126.29,64.77487041]
[1769531017110,68.79547646,126.37,126.26,64.77487041]
[1769531017511,68.79547646,126.37,126.28,7.1346]
[1769531017512,7.1313,126.35,126.28,7.1346]
[1769531017708,68.79547646,126.37,126.28,64.77487041]
[1769531018518,68.79547646,126.37,126.3,64.77487041]
[1769531018917,68.79547646,126.37,126.33,7.1321]
[1769531019108,68.79547646,126.37,126.3,175.74347041]
[1769531019511,68.79547646,126.37,126.32,7.1328]
[1769531019817,68.79547646,126.37,126.28,427.2485]
[1769531020117,68.79547646,126.37,126.29,175.75737041]
[1769531020313,68.79547646,126.4,126.32,64.77487041]
[1769531020521,68.79547646,126.44,126.33,175.71907041]
[1769531020714,68.79547646,126.44,126.34,110.9365]
[1769531021110,75.92177646,126.44,126.37,7.13]
[1769531021415,75.92177646,126.44,126.35,64.77487041]
[1769531022216,75.92177646,126.44,126.36,7.1306]
[1769531022515,75.92177646,126.44,126.35,64.77487041]
[1769531023221,75.92227646,126.43,126.35,71.90557041]
[1769531023519,68.79547646,126.43,126.35,64.77487041]
[1769531024313,68.79547646,126.43,126.37,7.13]
[1769531025421,75.92217646,126.43,126.35,7.1307]
[1769531025621,75.92217646,126.43,126.33,175.71907041]
[1769531025816,68.79547646,126.43,126.34,175.71117041]
[1769531026120,68.79547646,126.43,126.35,64.77487041]
[1769531026321,68.79547646,126.46,126.37,64.77487041]
[1769531026821,68.79547646,126.44,126.35,64.77487041]
[1769531027425,75.92227646,126.43,126.35,71.90567041]
[1769531027716,68.79547646,126.43,126.35,64.77487041]
[1769531028115,4.61220492,126.45,126.32,110.9521]
[1769531028116,68.79547646,126.41,126.34,7.1312]
[1769531029924,75.92387646,126.4,126.32,7.1324]
[1769531030226,68.79547646,126.4,126.32,7.1324]
[1769531030823,304.62,126.43,126.34,64.77487041]
[1769531031023,110.8464,126.45,126.34,64.77487041]
[1769531031024,68.79547646,126.44,126.34,175.71037041]
[1769531031332,68.79547646,126.44,126.35,64.77487041]
[1769531031520,68.79547646,126.44,126.37,7.1299]
[1769531032025,75.92167646,126.44,126.37,7.1299]
[1769531033923,75.92167646,126.44,126.35,71.90577041]
[1769531034428,75.92167646,126.44,126.36,7.1305]
[1769531034925,62.46353058,126.43,126.35,7.1311]
[1769531035931,69.59083058,126.42,126.35,7.1311]
[1769531037034,69.59083058,126.42,126.33,66.49084677]
[1769531037230,62.46353058,126.42,126.33,177.43664677]
[1769531037441,62.46353058,126.42,126.35,66.49084677]
[1769531038340,62.46353058,126.42,126.37,7.13]
[1769531040242,62.46353058,126.42,126.35,73.62154677]
[1769531040543,67.06055337,126.42,126.35,7.1307]
[1769531040743,62.46353058,126.4,126.33,7.1318]
[1769531041246,7.129,126.39,126.32,316.0]
[1769531041446,62.46353058,126.38,126.32,316.0]
[1769531041743,62.46353058,126.38,126.32,382.49084677]
[1769531042143,67.06055337,126.36,126.28,66.49084677]
[1769531042344,62.46353058,126.36,126.28,66.49084677]
[1769531044049,62.46353058,126.36,126.3,7.134]
[1769531044845,67.06055337,126.36,126.25,177.50174677]
[1769531045050,67.06055337,126.36,126.25,66.49084677]
[1769531045250,67.06055337,126.36,126.25,177.50704677]
[1769531045438,67.06055337,126.36,126.26,7.1358]
[1769531045644,62.46353058,126.34,126.25,66.49084677]
[1769531046544,69.59533058,126.34,126.27,7.1356]
[1769531048450,69.59613058,126.33,126.25,73.62714677]
[1769531049152,69.59613058,126.33,126.25,66.49084677]
[1769531049948,69.59613058,126.33,126.26,7.1362]
[1769531051955,62.46353058,126.33,126.27,7.1357]
[1769531052554,62.46353058,126.33,126.28,7.1351]
[1769531054253,62.46353058,126.33,126.25,66.49084677]
[1769531055452,4.59702279,126.36,126.28,66.49084677]
[1769531055453,67.06055337,126.36,126.28,66.49084677]
[1769531056357,74.19125337,126.36,126.28,66.49084677]
[1769531056556,67.06055337,126.36,126.28,66.49084677]
[1769531057051,62.46353058,126.36,126.3,66.49084677]
[1769531057253,62.46353058,126.38,126.3,66.49084677]
[1769531057459,69.59303058,126.38,126.32,7.1329]
[1769531057654,69.59303058,126.38,126.3,66.49084677]
[1769531058057,69.59303058,126.38,126.31,7.1332]
[1769531058352,62.46353058,126.35,126.27,177.48884677]
[1769531058554,62.46353058,126.35,126.27,66.49084677]
[1769531059650,62.46353058,126.35,126.28,66.49084677]
[1769531060455,62.46353058,126.35,126.31,7.1334]
[1769531061052,4.59702279,126.36,126.28,66.49084677]
[1769531061053,11.72642279,126.39,126.32,7.1329]
[1769531062261,11.72642279,126.39,126.33,7.1321]
[1769531062757,4.59702279,126.39,126.33,7.1321]
[1769531062952,66.06964734,126.38,126.33,7.1321]
[1769531066562,66.06964734,126.38,126.3,66.49084677]
[1769531066962,66.06964734,126.38,126.32,7.1329]
[1769531068962,73.19914734,126.38,126.32,7.1329]
[1769531069359,66.06964734,126.38,126.32,7.1329]
[1769531069659,4.59702279,126.39,126.32,62.37352512]
[1769531069868,68.24357209,126.4,126.33,62.37352512]
[1769531070862,68.24357209,126.4,126.35,7.1312]
[1769531072565,68.24357209,126.4,126.3,173.34442512]
[1769531073863,68.24357209,126.38,126.33,7.1323]
[1769531074261,68.24357209,126.38,126.3,62.37352512]
[1769531074866,68.24357209,126.38,126.27,62.37352512]
[1769531076065,68.24357209,126.35,126.29,7.1346]
[1769531076456,68.24357209,126.32,126.23,62.37352512]
[1769531076662,72.84059488,126.32,126.23,62.37352512]
[1769531077367,75.37767209,126.3,126.23,62.37352512]
[1769531077668,75.37767209,126.3,126.2,173.42892512]
[1769531077867,68.24357209,126.3,126.22,62.37352512]
[1769531078863,68.24357209,126.3,126.24,7.1372]
[1769531081762,68.24357209,126.27,126.19,62.37352512]
[1769531082568,72.84059488,126.29,126.19,62.37352512]